[Event "1000GM Winter IM Norm-2 2024"]
[Site "Sunnyvale/"]
[Date "2024.01.05"]
[Round "6.4"]
[White "Atwell, Rose"]
[Black "Ramirez, Carlos"]
[Result "1-0"]
[ECO "D20"]
[WhiteElo "2104"]
[BlackElo "2190"]
[Annotator "RC"]
[PlyCount "75"]
[EventDate "2023.12.14"]
[EventType "schev"]
[EventCountry "USA"]
[SourceTitle "playchess.com"]
[Source "ChessBase"]
[SourceQuality "1"]
[TimeControl "5400+30"]

1. e4 {[%emt 0:00:02]} e6 {[%emt 0:00:37]} 2. d4 {[%emt 0:00:07]} d5 {[%emt 0:00:09]} 3. exd5 {[%emt 0:00:06]} exd5 {[%emt 0:00:02]} 4. Nf3 {[%emt 0:00:09]} Bd6 {[%emt 0:00:17]} 5. c4 {[%emt 0:00:08]} Nf6 {[%emt 0:01:55]} 6. Nc3 {[%emt 0:03:21]} dxc4 {[%emt 0:02:26]} 7. Bxc4 {[%emt 0:00:47]} O-O {[%emt 0:00:03]} 8. O-O {[%emt 0:00:34]} Nc6 {[%emt 0:04:10]} 9. h3 {[%emt 0:03:55]} h6 {[%emt 0:07:15]} 10. Qc2 {[%emt 0:05:21]} Bd7 {[%emt 0:33:43]} 11. Re1 {[%emt 0:16:30]} Qc8 {[%emt 0:02:54]} 12. Bf1 {[%emt 0:22:29]} Bf5 {[%emt 0:00:43]} 13. Qb3 {[%emt 0:01:23]} Nb4 {[%emt 0:03:52]} 14. Re2 {[%emt 0:02:27]} Be6 {[%emt 0:01:24]} 15. Qd1 {[%emt 0:03:56]} Rd8 {[%emt 0:00:34]} 16. Be3 {[%emt 0:03:00]} c6 {[%emt 0:02:02]} 17. Rc1 {[%emt 0:00:58]} Nbd5 {[%emt 0:01:31]} 18. Qc2 {[%emt 0:02:55]} Bf5 {[%emt 0:01:22]} 19. Qb3 {[%emt 0:00:28]} Be6 {[%emt 0:01:32]} 20. Qc2 {[%emt 0:00:37]} Re8 {[%emt 0:00:38]} 21. Bd2 {[%emt 0:02:14]} Nb4 {[%emt 0:04:52]} 22. Qa4 {[%emt 0:00:55]} Rd8 {[%emt 0:03:24]} 23. Ne5 {[%emt 0:01:23]} Bf8 {[%emt 0:01:09]} 24. Be3 {[%emt 0:00:49]} Nfd5 {[%emt 0:00:31]} 25. a3 {[%emt 0:01:42]} Nxc3 {[%emt 0:00:49]} 26. bxc3 {[%emt 0:00:09]} Nd5 {[%emt 0:00:08]} 27. c4 {[%emt 0:03:01]} Nxe3 {[%emt 0:01:43]} 28. fxe3 {[%emt 0:00:14]} f6 {[%emt 0:00:37]} 29. Ng6 {[%emt 0:00:54]} Qd7 {[%emt 0:00:43]} 30. c5 {[%emt 0:02:53]} f5 {[%emt 0:02:55]} 31. Rf2 {[%emt 0:01:25]} Kh7 {[%emt 0:02:23]} 32. Ne5 {[%emt 0:01:18]} Qc7 {[%emt 0:01:29]} 33. Bc4 {[%emt 0:01:48]} Bxc4 {[%emt 0:00:40]} 34. Qxc4 {[%emt 0:00:27]} Rd5 {[%emt 0:00:52]} 35. Rxf5 {[%emt 0:00:57]} Re8 {[%emt 0:10:37]} 36. Rf7 {[%emt 0:01:43]} Qd8 {[%emt 0:00:29]} 37. Rcf1 {[%emt 0:01:18]} Bxc5 {[%emt 0:03:56]} 38. Qd3+ {[%emt 0:00:27]} 1-0

[Event "1000GM Winter IM Norm-2 2024"]
[Site "Sunnyvale/"]
[Date "2024.01.05"]
[Round "6.5"]
[White "Sivakumar, Shaaketh"]
[Black "Arenas, David"]
[Result "1/2-1/2"]
[ECO "C67"]
[WhiteElo "2364"]
[BlackElo "2406"]
[Annotator "RC"]
[PlyCount "39"]
[EventDate "2023.12.14"]
[EventType "schev"]
[EventCountry "USA"]
[SourceTitle "playchess.com"]
[Source "ChessBase"]
[SourceQuality "1"]
[TimeControl "5400+30"]

1. e4 {[%emt 0:00:01]} e5 {[%emt 0:10:26]} 2. Nf3 {[%emt 0:00:06]} Nc6 {[%emt 0:00:07]} 3. Bb5 {[%emt 0:00:07]} Nf6 {[%emt 0:00:12]} 4. O-O {[%emt 0:00:07]} Nxe4 {[%emt 0:00:21]} 5. Re1 {[%emt 0:00:06]} Nd6 {[%emt 0:00:12]} 6. Nxe5 {[%emt 0:00:04]} Nxe5 {[%emt 0:00:12]} 7. Rxe5+ {[%emt 0:00:05]} Be7 {[%emt 0:00:07]} 8. Bf1 {[%emt 0:00:05]} O-O {[%emt 0:00:14]} 9. d4 {[%emt 0:00:06]} Bf6 {[%emt 0:00:18]} 10. Re1 {[%emt 0:00:02]} Re8 {[%emt 0:00:08]} 11. c3 {[%emt 0:00:47]} Rxe1 {[%emt 0:01:37]} 12. Qxe1 {[%emt 0:00:02]} Ne8 {[%emt 0:01:05]} 13. Bf4 {[%emt 0:00:24]} d5 {[%emt 0:00:11]} 14. Bd3 {[%emt 0:00:19]} g6 {[%emt 0:00:18]} 15. Nd2 {[%emt 0:00:11]} Ng7 {[%emt 0:00:08]} 16. Nf3 {[%emt 0:00:15]} Bf5 {[%emt 0:00:33]} 17. Bxf5 {[%emt 0:00:18]} Nxf5 {[%emt 0:00:11]} 18. Be5 {[%emt 0:00:05]} c6 {[%emt 0:00:39]} 19. Bxf6 {[%emt 0:00:20]} Qxf6 {[%emt 0:00:06]} 20. Qe5 {[%emt 0:00:13]} 1/2-1/2

[Event "1000GM Winter IM Norm-2 2024"]
[Site "Sunnyvale/"]
[Date "2024.01.05"]
[Round "6.6"]
[White "Rodi, Luis Ernesto"]
[Black "Karthi, Jashith"]
[Result "1/2-1/2"]
[ECO "D00"]
[WhiteElo "2196"]
[BlackElo "2032"]
[Annotator "RC"]
[PlyCount "152"]
[EventDate "2023.12.14"]
[EventType "schev"]
[EventCountry "USA"]
[SourceTitle "playchess.com"]
[Source "ChessBase"]
[SourceQuality "1"]
[TimeControl "5400+30"]

1. d4 {[%emt 0:00:30]} d5 {[%emt 0:00:21]} 2. Nc3 {[%emt 0:00:10]} Bf5 {[%emt 0:01:09]} 3. f3 {[%emt 0:00:35]} Nf6 {[%emt 0:00:13]} 4. Bf4 {[%emt 0:00:58]} c6 {[%emt 0:02:42]} 5. g4 {[%emt 0:00:33]} Bg6 {[%emt 0:00:09]} 6. h4 {[%emt 0:00:06]} h5 {[%emt 0:00:07]} 7. g5 {[%emt 0:00:10]} Nfd7 {[%emt 0:00:06]} 8. e4 {[%emt 0:00:17]} e6 {[%emt 0:00:21]} 9. Bd3 {[%emt 0:00:13]} Bb4 {[%emt 0:01:04]} 10. exd5 {[%emt 0:00:25]} cxd5 {[%emt 0:01:01]} 11. Bxg6 {[%emt 0:00:29]} fxg6 {[%emt 0:00:08]} 12. Qd3 {[%emt 0:00:08]} O-O {[%emt 0:02:19]} 13. Nge2 {[%emt 0:03:49]} Bxc3+ {[%emt 0:05:00]} 14. bxc3 {[%emt 0:00:24]} Rf5 {[%emt 0:05:19]} 15. Qe3 {[%emt 0:01:53]} Qe7 {[%emt 0:01:29]} 16. O-O {[%emt 0:04:41]} Nc6 {[%emt 0:01:26]} 17. Bg3 {[%emt 0:00:15]} e5 {[%emt 0:03:48]} 18. dxe5 {[%emt 0:00:11]} Ndxe5 {[%emt 0:01:34]} 19. Nf4 {[%emt 0:09:24]} Qf7 {[%emt 0:03:28]} 20. Kg2 {[%emt 0:02:56]} Rf8 {[%emt 0:00:53]} 21. Nd3 {[%emt 0:03:21]} Ng4 {[%emt 0:04:05]} 22. fxg4 {[%emt 0:06:01]} Rxf1 {[%emt 0:00:12]} 23. Rxf1 {[%emt 0:00:04]} Qxf1+ {[%emt 0:00:07]} 24. Kh2 {[%emt 0:00:02]} Qd1 {[%emt 0:08:03]} 25. gxh5 {[%emt 0:00:46]} Qxc2+ {[%emt 0:00:33]} 26. Kh3 {[%emt 0:00:10]} gxh5 {[%emt 0:01:08]} 27. Bd6 {[%emt 0:00:49]} Rd8 {[%emt 0:07:38]} 28. Qe6+ {[%emt 0:01:58]} Kh7 {[%emt 0:10:18]} 29. Qf5+ {[%emt 0:09:05]} Kh8 {[%emt 0:01:22]} 30. Qf3 {[%emt 0:00:06]} Rxd6 {[%emt 0:02:28]} 31. Qxh5+ {[%emt 0:00:39]} Rh6 {[%emt 0:05:44]} 32. Qf3 {[%emt 0:00:15]} Rd6 {[%emt 0:15:02]} 33. Qh5+ {[%emt 0:00:11]} Rh6 {[%emt 0:01:27]} 34. Qf3 {[%emt 0:00:07]} Rxh4+ {[%emt 0:00:28]} 35. Kxh4 {[%emt 0:00:09]} Qh2+ {[%emt 0:00:13]} 36. Kg4 {[%emt 0:56:40]} Ne5+ {[%emt 0:02:06]} 37. Nxe5 {[%emt 0:00:00]} Qxe5 {[%emt 0:00:08]} 38. g6 {[%emt 0:00:00]} Qe6+ {[%emt 0:01:30]} 39. Qf5 {[%emt 0:00:00]} Qe2+ {[%emt 0:07:18]} 40. Kg5 {[%emt 0:02:00]} Qe3+ {[%emt 0:00:36]} 41. Qf4 {[%emt 0:00:00]} Qe7+ {[%emt 0:01:34]} 42. Kh5 {[%emt 0:00:00]} Kg8 {[%emt 0:01:02]} 43. Qb8+ {[%emt 0:00:00]} Qf8 {[%emt 0:00:05]} 44. Qe5 {[%emt 0:00:00]} Qf3+ {[%emt 0:01:19]} 45. Kg5 {[%emt 0:00:00]} Qg2+ {[%emt 0:05:57]} 46. Kf5 Qf3+ {[%emt 0:00:00]} 47. Kg5 {[%emt 0:00:00]} Qg2+ {[%emt 0:00:00]} 48. Kf5 {[%emt 0:00:00]} Qh3+ {[%emt 0:00:00]} 49. Kf4 {[%emt 0:00:00]} Qh2+ {[%emt 0:00:00]} 50. Kf5 {[%emt 0:00:00]} Qh5+ {[%emt 0:00:00]} 51. Kf4 {[%emt 0:00:00]} Qh2+ {[%emt 0:00:00]} 52. Kf5 {[%emt 0:00:00]} Qh5+ {[%emt 0:00:00]} 53. Kf4 {[%emt 0:00:00]} Qxg6 {[%emt 0:00:00]} 54. Qb8+ {[%emt 0:00:00]} Kh7 {[%emt 0:00:00]} 55. Qxb7 {[%emt 0:00:00]} Qe4+ {[%emt 0:00:00]} 56. Kg3 {[%emt 0:00:00]} Qe3+ {[%emt 0:00:00]} 57. Kg4 {[%emt 0:00:00]} Qe2+ {[%emt 0:00:00]} 58. Kf4 {[%emt 0:00:00]} Qxa2 {[%emt 0:00:00]} 59. Ke5 {[%emt 0:00:00]} Qa5 {[%emt 0:00:00]} 60. Qc8 {[%emt 0:00:00]} Qb6 {[%emt 0:00:00]} 61. Kxd5 {[%emt 0:00:00]} Qb5+ {[%emt 0:00:00]} 62. Kd4 {[%emt 0:00:00]} a5 {[%emt 0:00:00]} 63. c4 {[%emt 0:00:00]} Qb2+ {[%emt 0:00:04]} 64. Kd5 {[%emt 0:00:00]} Qd2+ {[%emt 0:00:30]} 65. Kc5 {[%emt 0:00:00]} Qb4+ {[%emt 0:03:59]} 66. Kd5 {[%emt 0:00:00]} Qd2+ 67. Kc5 {[%emt 0:00:00]} g5 {[%emt 0:01:00]} 68. Qf5+ {[%emt 0:00:00]} Kh6 {[%emt 0:00:30]} 69. Kc6 {[%emt 0:00:00]} a4 {[%emt 0:00:30]} 70. c5 {[%emt 0:00:00]} Qg2+ {[%emt 0:00:30]} 71. Kb5 {[%emt 0:00:00]} a3 {[%emt 0:00:30]} 72. Qf6+ {[%emt 0:00:00]} Kh5 {[%emt 0:00:30]} 73. Qh8+ {[%emt 0:00:00]} Kg4 {[%emt 0:00:30]} 74. Qd4+ {[%emt 0:00:00]} Kh5 {[%emt 0:00:30]} 75. Qh8+ {[%emt 0:00:00]} Kg4 {[%emt 0:00:30]} 76. Qd4+ {[%emt 0:00:00]} Kh5 {[%emt 0:00:30]} 1/2-1/2

[Event "1000GM Winter IM Norm-2 2024"]
[Site "Sunnyvale/"]
[Date "2024.01.05"]
[Round "6.7"]
[White "Stopa, Jacek"]
[Black "Bhatta, Rohit"]
[Result "1-0"]
[ECO "C24"]
[WhiteElo "2344"]
[BlackElo "1867"]
[Annotator "RC"]
[PlyCount "85"]
[EventDate "2023.12.14"]
[EventType "schev"]
[EventCountry "USA"]
[SourceTitle "playchess.com"]
[Source "ChessBase"]
[SourceQuality "1"]
[TimeControl "5400+30"]

1. e4 {[%emt 0:00:02]} e5 {[%emt 0:00:05]} 2. Bc4 {[%emt 0:00:04]} Nf6 {[%emt 0:00:17]} 3. d3 {[%emt 0:00:04]} c6 {[%emt 0:00:18]} 4. Nf3 {[%emt 0:02:51]} d5 {[%emt 0:00:13]} 5. exd5 {[%emt 0:00:06]} cxd5 {[%emt 0:00:18]} 6. Bb3 {[%emt 0:00:05]} Nc6 {[%emt 0:01:26]} 7. Bg5 {[%emt 0:01:11]} Be7 {[%emt 0:09:40]} 8. Nc3 {[%emt 0:02:12]} d4 {[%emt 0:09:42]} 9. Ne2 {[%emt 0:01:43]} Nd7 {[%emt 0:05:12]} 10. Bxe7 {[%emt 0:02:25]} Qxe7 {[%emt 0:00:17]} 11. O-O {[%emt 0:00:07]} Nc5 {[%emt 0:02:48]} 12. Bc4 {[%emt 0:03:26]} Be6 {[%emt 0:07:15]} 13. Bb5 {[%emt 0:02:59]} f6 {[%emt 0:06:30]} 14. Re1 {[%emt 0:01:02]} O-O {[%emt 0:03:28]} 15. Bxc6 {[%emt 0:11:14]} bxc6 {[%emt 0:00:03]} 16. b4 {[%emt 0:00:02]} Na6 {[%emt 0:03:20]} 17. a3 {[%emt 0:00:51]} Qd7 {[%emt 0:04:22]} 18. c4 {[%emt 0:01:56]} dxc3 {[%emt 0:06:08]} 19. Nxc3 {[%emt 0:00:05]} Rfd8 {[%emt 0:03:02]} 20. d4 {[%emt 0:08:15]} exd4 {[%emt 0:04:46]} 21. Qxd4 {[%emt 0:01:05]} Qxd4 {[%emt 0:02:14]} 22. Nxd4 {[%emt 0:00:02]} Rxd4 {[%emt 0:01:56]} 23. Rxe6 {[%emt 0:00:02]} Rc4 {[%emt 0:01:19]} 24. Na4 {[%emt 0:01:14]} Rd8 {[%emt 0:02:49]} 25. h3 {[%emt 0:01:57]} Kf7 {[%emt 0:02:44]} 26. Rae1 {[%emt 0:00:12]} Rd7 {[%emt 0:00:24]} 27. Re8 {[%emt 0:05:46]} Rc2 {[%emt 0:06:08]} 28. Ra8 {[%emt 0:05:08]} Kg6 {[%emt 0:02:03]} 29. Re3 {[%emt 0:00:26]} Rd1+ {[%emt 0:05:50]} 30. Kh2 {[%emt 0:00:05]} Rd7 {[%emt 0:00:05]} 31. Rg3+ {[%emt 0:01:22]} Kf7 {[%emt 0:01:18]} 32. Rf3 {[%emt 0:00:07]} h6 {[%emt 0:01:14]} 33. Kg3 {[%emt 0:01:00]} Re7 {[%emt 0:01:44]} 34. Nc3 {[%emt 0:01:48]} Kg6 {[%emt 0:01:24]} 35. Rd3 {[%emt 0:07:16]} Kf7 {[%emt 0:02:06]} 36. Nd1 {[%emt 0:03:07]} c5 {[%emt 0:02:18]} 37. Ne3 {[%emt 0:00:01]} Rb2 {[%emt 0:00:53]} 38. Nf5 {[%emt 0:16:06]} Rc7 {[%emt 0:00:11]} 39. b5 {[%emt 0:00:34]} c4 {[%emt 0:00:48]} 40. Rc3 {[%emt 0:00:01]} Rb3 {[%emt 0:01:02]} 41. Rxb3 {[%emt 0:00:21]} cxb3 {[%emt 0:00:06]} 42. bxa6 {[%emt 0:00:03]} Rc5 {[%emt 0:01:56]} 43. Rxa7+ {[%emt 0:00:20]} 1-0

[Event "1000GM Winter IM Norm-2 2024"]
[Site "Sunnyvale/"]
[Date "2024.01.05"]
[Round "6.8"]
[White "Calderin Gonzalez, Roberto"]
[Black "Stevens, Adam B"]
[Result "1-0"]
[ECO "D00"]
[WhiteElo "2413"]
[BlackElo "1878"]
[Annotator "RC"]
[PlyCount "63"]
[EventDate "2023.12.14"]
[EventType "schev"]
[EventCountry "USA"]
[SourceTitle "playchess.com"]
[Source "ChessBase"]
[SourceQuality "1"]
[TimeControl "5400+30"]

1. d4 {[%emt 0:05:25]} Nf6 {[%emt 0:02:20]} 2. Bg5 {[%emt 0:00:15]} d5 {[%emt 0:01:45]} 3. Bxf6 {[%emt 0:00:31]} exf6 {[%emt 0:00:41]} 4. e3 {[%emt 0:00:08]} c5 {[%emt 0:02:05]} 5. dxc5 {[%emt 0:02:58]} Bxc5 {[%emt 0:00:57]} 6. Nc3 {[%emt 0:06:57]} Be6 {[%emt 0:01:52]} 7. Nge2 {[%emt 0:01:09]} Nc6 {[%emt 0:01:28]} 8. Nf4 {[%emt 0:03:32]} d4 {[%emt 0:02:28]} 9. Nxe6 {[%emt 0:00:38]} fxe6 {[%emt 0:00:22]} 10. Qh5+ {[%emt 0:00:04]} g6 {[%emt 0:01:32]} 11. Qxc5 {[%emt 0:00:09]} dxc3 {[%emt 0:00:05]} 12. Qxc3 {[%emt 0:00:11]} Rc8 {[%emt 0:02:57]} 13. Qa3 {[%emt 0:08:36]} Kf7 {[%emt 0:01:09]} 14. Rd1 {[%emt 0:00:16]} Qc7 {[%emt 0:02:02]} 15. Be2 {[%emt 0:00:16]} Rhd8 {[%emt 1:16:17]} 16. O-O {[%emt 0:00:11]} Rxd1 {[%emt 0:00:00]} 17. Rxd1 {[%emt 0:00:13]} Rd8 {[%emt 0:00:00]} 18. Rxd8 {[%emt 0:00:46]} Qxd8 {[%emt 0:00:00]} 19. Qc3 {[%emt 0:00:14]} Qd5 {[%emt 0:00:00]} 20. a3 {[%emt 0:00:10]} h5 {[%emt 0:00:00]} 21. Qd3 {[%emt 0:02:04]} Qc5 {[%emt 0:00:00]} 22. Qd7+ {[%emt 0:00:29]} Ne7 {[%emt 0:00:00]} 23. c4 {[%emt 0:03:15]} Qb6 {[%emt 0:00:00]} 24. b4 {[%emt 0:00:21]} a5 {[%emt 0:00:00]} 25. c5 {[%emt 0:00:40]} Qa7 {[%emt 0:00:00]} 26. Bc4 {[%emt 0:00:46]} axb4 {[%emt 0:00:00]} 27. Bxe6+ {[%emt 0:00:11]} Kf8 {[%emt 0:00:00]} 28. Qd8+ {[%emt 0:00:08]} Kg7 {[%emt 0:00:00]} 29. Qxe7+ {[%emt 0:00:07]} Kh6 {[%emt 0:00:00]} 30. Qf8+ {[%emt 0:00:22]} Kg5 {[%emt 0:00:00]} 31. f4+ {[%emt 0:00:20]} Kh4 {[%emt 0:00:00]} 32. g3# {[%emt 0:00:08]} 1-0

[Event "1000GM Winter IM Norm-2 2024"]
[Site "Sunnyvale/"]
[Date "2024.01.06"]
[Round "6.9"]
[White "Zuluaga Mancilla, Cesar"]
[Black "Sivakumar, Shaashwath"]
[Result "0-1"]
[ECO "D15"]
[WhiteElo "2251"]
[BlackElo "2205"]
[Annotator "RC"]
[PlyCount "128"]
[EventDate "2023.12.14"]
[EventType "schev"]
[EventCountry "USA"]
[SourceTitle "playchess.com"]
[Source "ChessBase"]
[SourceQuality "1"]
[TimeControl "5400+30"]

1. d4 d5 2. Nf3 Nf6 3. e3 Bf5 4. c4 c6 5. Nc3 a6 6. Qb3 Ra7 7. Nh4 Bc8 8. Bd2 e6 9. Nf3 Be7 10. Qc2 O-O 11. Bd3 dxc4 12. Bxc4 c5 13. dxc5 Bxc5 14. a3 b5 15. Be2 Rc7 16. O-O Bb7 17. Rfd1 Nbd7 18. b4 Be7 19. Qb3 Qc8 20. Rac1 Qb8 21. a4 bxa4 22. Nxa4 Rfc8 23. Rxc7 Rxc7 24. h3 Ne4 25. Be1 Qc8 26. Qb1 h6 27. Bd3 Nef6 28. e4 Bc6 29. Nc3 Ba8 30. Ne2 Bb7 31. Bd2 Qa8 {[%emt 1:46:00]} 32. Bf4 {[%emt 0:16:00]} Rc8 {[%emt 0:00:30]} 33. Ng3 {[%emt 0:00:30]} Nb6 {[%emt 0:00:30]} 34. Rc1 {[%emt 0:00:30]} Rxc1+ {[%emt 0:00:30]} 35. Bxc1 {[%emt 0:00:30]} Qc8 {[%emt 0:00:30]} 36. Be3 {[%emt 0:00:30]} Nbd7 {[%emt 0:00:30]} 37. Bd4 {[%emt 0:00:30]} Qc6 {[%emt 0:00:30]} 38. Qb2 {[%emt 0:00:30]} Qa4 {[%emt 0:00:30]} 39. Bc3 {[%emt 0:00:30]} Qd1+ {[%emt 0:00:30]} 40. Ne1 {[%emt 0:00:30]} Nb6 {[%emt 0:00:30]} 41. Bc2 {[%emt 0:00:30]} Qd7 {[%emt 0:00:30]} 42. Bd4 {[%emt 0:00:30]} Nc4 {[%emt 0:00:30]} 43. Qc3 {[%emt 0:00:30]} Nd6 {[%emt 0:00:30]} 44. Bxf6 {[%emt 0:00:30]} Bxf6 {[%emt 0:00:30]} 45. Qd3 {[%emt 0:00:30]} Be5 {[%emt 0:00:30]} 46. f4 {[%emt 0:00:30]} Bxf4 {[%emt 0:00:30]} 47. Nh5 {[%emt 0:00:30]} Be5 {[%emt 0:00:30]} 48. Nf3 {[%emt 0:00:30]} Bxe4 {[%emt 0:00:30]} 49. Qe3 {[%emt 0:00:30]} Bxc2 {[%emt 0:00:30]} 50. Qxe5 {[%emt 0:00:30]} Ne8 {[%emt 0:00:30]} 51. Nd4 {[%emt 0:00:30]} Ba4 {[%emt 0:00:30]} 52. Qe3 {[%emt 0:00:30]} Qd6 {[%emt 0:00:30]} 53. Qc3 {[%emt 0:00:30]} Bd7 {[%emt 0:00:30]} 54. Nf3 {[%emt 0:00:30]} Bc6 {[%emt 0:00:30]} 55. Ne5 {[%emt 0:00:30]} Bb7 {[%emt 0:00:30]} 56. Ng4 {[%emt 0:00:30]} Qd5 {[%emt 0:00:30]} 57. Nf4 {[%emt 0:00:30]} Qe4 {[%emt 0:00:30]} 58. Qg3 {[%emt 0:00:30]} Kf8 {[%emt 0:00:30]} 59. Nh5 {[%emt 0:00:30]} Qxb4 {[%emt 0:00:30]} 60. Ne5 {[%emt 0:00:30]} Qd6 {[%emt 0:00:30]} 61. Nxg7 {[%emt 0:00:30]} Qd1+ {[%emt 0:00:30]} 62. Kh2 {[%emt 0:00:30]} Nxg7 {[%emt 0:00:30]} 63. Qa3+ {[%emt 0:00:30]} Kg8 {[%emt 0:00:30]} 64. Qe7 {[%emt 0:00:30]} Qf1 {[%emt 0:00:30]} 0-1

[Event "1000GM Winter IM Norm-2 2024"]
[Site "Sunnyvale/"]
[Date "2024.01.06"]
[Round "7.1"]
[White "Zhou, Ruoyu"]
[Black "Rodi, Luis Ernesto"]
[Result "1/2-1/2"]
[ECO "B12"]
[WhiteElo "2112"]
[BlackElo "2196"]
[Annotator "RC"]
[PlyCount "48"]
[EventDate "2023.12.14"]
[EventType "schev"]
[EventCountry "USA"]
[SourceTitle "playchess.com"]
[Source "ChessBase"]
[SourceQuality "1"]
[TimeControl "5400+30"]

1. e4 {[%emt 0:00:03]} c6 {[%emt 0:04:01]} 2. d4 {[%emt 0:00:10]} d5 {[%emt 0:00:05]} 3. e5 {[%emt 0:00:09]} Bf5 {[%emt 0:00:14]} 4. Nf3 {[%emt 0:00:18]} e6 {[%emt 0:00:06]} 5. Be2 {[%emt 0:00:24]} c5 {[%emt 0:00:21]} 6. c3 {[%emt 0:00:36]} Nc6 {[%emt 0:00:22]} 7. O-O {[%emt 0:00:39]} h6 {[%emt 0:03:52]} 8. Be3 {[%emt 0:19:51]} Qb6 {[%emt 0:02:10]} 9. Qd2 {[%emt 0:11:43]} cxd4 {[%emt 0:05:09]} 10. Nxd4 {[%emt 0:03:54]} Nxd4 {[%emt 0:00:33]} 11. cxd4 {[%emt 0:00:15]} Ne7 {[%emt 0:01:39]} 12. Nc3 {[%emt 0:04:08]} Nc6 {[%emt 0:00:25]} 13. a3 {[%emt 0:07:33]} Be7 {[%emt 0:00:31]} 14. b4 {[%emt 0:00:46]} O-O {[%emt 0:01:39]} 15. Na4 {[%emt 0:01:40]} Qd8 {[%emt 0:00:48]} 16. Rac1 {[%emt 0:11:06]} a5 {[%emt 0:08:05]} 17. Nc5 {[%emt 0:01:22]} axb4 {[%emt 0:01:05]} 18. axb4 {[%emt 0:00:13]} Qc8 {[%emt 0:09:10]} 19. Bb5 {[%emt 0:12:47]} Na7 {[%emt 0:00:44]} 20. Be2 {[%emt 0:00:51]} Nc6 {[%emt 0:00:36]} 21. Bb5 {[%emt 0:00:12]} Na7 {[%emt 0:59:25]} 22. Be2 {[%emt 0:00:30]} Nc6 {[%emt 0:00:30]} 23. b5 {[%emt 0:00:30]} Na5 24. b6 {[%emt 0:00:30]} Qc6 {[%emt 0:01:00]} 1/2-1/2

[Event "1000GM Winter IM Norm-2 2024"]
[Site "Sunnyvale/"]
[Date "2024.01.06"]
[Round "7.2"]
[White "Karthi, Jashith"]
[Black "Dominguez Aguilar, Guillermo"]
[Result "1/2-1/2"]
[ECO "A70"]
[WhiteElo "2032"]
[BlackElo "2319"]
[Annotator "RC"]
[PlyCount "42"]
[EventDate "2023.12.14"]
[EventType "schev"]
[EventCountry "USA"]
[SourceTitle "playchess.com"]
[Source "ChessBase"]
[SourceQuality "1"]
[TimeControl "5400+30"]

1. d4 {[%emt 0:00:09]} Nf6 {[%emt 0:00:18]} 2. c4 {[%emt 0:00:05]} c5 {[%emt 0:00:06]} 3. d5 {[%emt 0:00:06]} e6 {[%emt 0:00:04]} 4. Nc3 {[%emt 0:00:04]} exd5 {[%emt 0:00:10]} 5. cxd5 {[%emt 0:00:05]} d6 {[%emt 0:00:04]} 6. Nf3 {[%emt 0:00:07]} g6 {[%emt 0:00:06]} 7. h3 {[%emt 0:00:03]} Bg7 {[%emt 0:00:09]} 8. e4 {[%emt 0:00:07]} O-O {[%emt 0:00:05]} 9. Be3 {[%emt 0:00:10]} a6 {[%emt 0:00:13]} 10. a4 {[%emt 0:00:07]} Nbd7 {[%emt 0:00:56]} 11. Be2 {[%emt 0:02:14]} Qe7 {[%emt 0:00:32]} 12. Nd2 {[%emt 0:00:38]} Rb8 {[%emt 0:00:25]} 13. a5 {[%emt 0:00:16]} b5 {[%emt 0:01:33]} 14. axb6 {[%emt 0:00:16]} Rxb6 {[%emt 0:00:01]} 15. Nc4 {[%emt 0:01:35]} Rb4 {[%emt 0:03:48]} 16. Qc2 {[%emt 0:18:59]} Re8 {[%emt 0:03:39]} 17. O-O {[%emt 0:05:35]} Nb6 {[%emt 0:17:10]} 18. Na5 {[%emt 0:10:51]} Bd7 {[%emt 0:00:14]} 19. Bf3 {[%emt 0:16:42]} Qd8 {[%emt 0:04:53]} 20. Nc6 {[%emt 0:01:53]} Bxc6 {[%emt 0:01:24]} 21. dxc6 {[%emt 0:00:06]} Nc4 {[%emt 0:08:47]} 1/2-1/2

[Event "1000GM Winter IM Norm-2 2024"]
[Site "Sunnyvale/"]
[Date "2024.01.06"]
[Round "7.3"]
[White "Ramirez, Carlos"]
[Black "Goktepe, Derin"]
[Result "1-0"]
[ECO "E52"]
[WhiteElo "2190"]
[BlackElo "2187"]
[Annotator "RC"]
[PlyCount "75"]
[EventDate "2023.12.14"]
[EventType "schev"]
[EventCountry "USA"]
[SourceTitle "playchess.com"]
[Source "ChessBase"]
[SourceQuality "1"]
[TimeControl "5400+30"]

1. d4 {[%emt 0:02:16]} Nf6 {[%emt 0:00:15]} 2. c4 {[%emt 0:00:08]} e6 {[%emt 0:00:18]} 3. Nf3 {[%emt 0:00:33]} d5 {[%emt 0:06:16]} 4. Nc3 {[%emt 0:00:22]} Bb4 {[%emt 0:00:39]} 5. e3 {[%emt 0:05:20]} O-O {[%emt 0:03:48]} 6. Bd3 {[%emt 0:01:18]} dxc4 {[%emt 0:03:33]} 7. Bxc4 {[%emt 0:02:13]} b6 {[%emt 0:03:39]} 8. O-O {[%emt 0:02:38]} Bb7 {[%emt 0:03:26]} 9. a3 {[%emt 0:00:22]} Bxc3 {[%emt 0:07:20]} 10. bxc3 {[%emt 0:00:42]} c5 {[%emt 0:03:44]} 11. Bb2 {[%emt 0:00:38]} cxd4 {[%emt 0:04:01]} 12. cxd4 {[%emt 0:01:36]} Nc6 {[%emt 0:03:47]} 13. Qe2 {[%emt 0:03:19]} Na5 {[%emt 0:04:35]} 14. Bd3 {[%emt 0:02:30]} Qd5 {[%emt 0:06:22]} 15. Ne1 {[%emt 0:22:30]} Qb3 {[%emt 0:11:49]} 16. f3 {[%emt 0:10:59]} Nd5 {[%emt 0:04:13]} 17. Rf2 {[%emt 0:01:13]} Nc3 {[%emt 0:07:40]} 18. Qd2 {[%emt 0:02:03]} Na4 {[%emt 0:00:58]} 19. Bc1 {[%emt 0:02:11]} Nc4 {[%emt 0:02:50]} 20. Qb4 {[%emt 0:01:58]} Na5 {[%emt 0:01:04]} 21. Bc2 {[%emt 0:12:28]} Qc3 {[%emt 0:00:18]} 22. Rb1 {[%emt 0:00:17]} Nc6 {[%emt 0:01:23]} 23. Qxa4 {[%emt 0:02:38]} Qxe1+ {[%emt 0:00:10]} 24. Rf1 {[%emt 0:00:17]} Qa5 {[%emt 0:00:55]} 25. Qb3 {[%emt 0:00:23]} Qd5 {[%emt 0:01:33]} 26. Qd3 {[%emt 0:00:42]} g6 {[%emt 0:00:37]} 27. Bb2 {[%emt 0:00:10]} Na5 {[%emt 0:01:10]} 28. e4 {[%emt 0:02:43]} Qc4 {[%emt 0:00:37]} 29. Qd2 {[%emt 0:00:25]} Rac8 {[%emt 0:01:15]} 30. Bd3 {[%emt 0:01:07]} Qb3 {[%emt 0:00:56]} 31. d5 {[%emt 0:20:01]} Nc4 {[%emt 0:01:49]} 32. Bxc4 {[%emt 0:00:00]} Qxc4 {[%emt 0:00:16]} 33. Rbc1 {[%emt 0:00:00]} Qa4 {[%emt 0:02:17]} 34. Bf6 {[%emt 0:00:00]} Rxc1 {[%emt 0:01:06]} 35. Qxc1 {[%emt 0:00:00]} e5 {[%emt 0:00:31]} 36. Qh6 {[%emt 0:00:00]} Qd4+ {[%emt 0:00:05]} 37. Kh1 {[%emt 0:00:00]} Qd3 {[%emt 0:00:11]} 38. Qg7# {[%emt 0:00:00]} 1-0